[Event "Late-Titled-Tuesday-Blitz-February-06-2024"]
[Site "Chess.com"]
[Date "2024.02.06"]
[Round "8"]
[White "kuli4ik"]
[Black "FairChess_on_YouTube"]
[Result "0-1"]
[WhiteElo "2860"]
[BlackElo "3052"]
[TimeControl "180+1"]
[EndTime "15:29:01 PST"]
[Termination "FairChess_on_YouTube won by checkmate"]

1. Nf3 {[%clk 0:03:00.9]} 1... b5 {[%clk 0:02:59.3]} 2. g3 {[%clk 0:02:58.7]}
2... Bb7 {[%clk 0:02:59.4]} 3. Bg2 {[%clk 0:02:59.3]} 3... Nf6 {[%clk 0:03:00]}
4. d3 {[%clk 0:02:58.5]} 4... g6 {[%clk 0:02:58]} 5. e4 {[%clk 0:02:58.2]} 5...
d6 {[%clk 0:02:57.4]} 6. O-O {[%clk 0:02:57.5]} 6... Nbd7 {[%clk 0:02:57.3]} 7.
a4 {[%clk 0:02:57.3]} 7... b4 {[%clk 0:02:56.3]} 8. a5 {[%clk 0:02:57.7]} 8...
c5 {[%clk 0:02:53.6]} 9. Re1 {[%clk 0:02:54.2]} 9... Bg7 {[%clk 0:02:53.4]} 10.
Nbd2 {[%clk 0:02:53.3]} 10... O-O {[%clk 0:02:53.2]} 11. Nc4 {[%clk 0:02:53.2]}
11... Ng4 {[%clk 0:02:49.4]} 12. Bf4 {[%clk 0:02:49.6]} 12... Ba6 {[%clk
0:02:46.4]} 13. Qc1 {[%clk 0:02:45.7]} 13... Bxc4 {[%clk 0:02:44.6]} 14. dxc4
{[%clk 0:02:45.8]} 14... Nge5 {[%clk 0:02:41.8]} 15. Nxe5 {[%clk 0:02:39.5]}
15... Nxe5 {[%clk 0:02:42.7]} 16. Bxe5 {[%clk 0:02:30.1]} 16... Bxe5 {[%clk
0:02:43.6]} 17. a6 {[%clk 0:02:25.7]} 17... Rb8 {[%clk 0:02:42.7]} 18. f4 {[%clk
0:02:19.1]} 18... Bg7 {[%clk 0:02:38.9]} 19. Kh1 {[%clk 0:02:14.6]} 19... Rb6
{[%clk 0:02:38]} 20. Ra4 {[%clk 0:02:04.5]} 20... Qc8 {[%clk 0:02:27.6]} 21. Qa1
{[%clk 0:02:01.6]} 21... Qe6 {[%clk 0:02:26.9]} 22. Qa2 {[%clk 0:01:55.1]} 22...
Rfb8 {[%clk 0:02:22.8]} 23. b3 {[%clk 0:01:53.6]} 23... Bc3 {[%clk 0:02:22.1]}
24. Rf1 {[%clk 0:01:36.5]} 24... h5 {[%clk 0:02:16.3]} 25. h4 {[%clk 0:01:31.2]}
25... Qg4 {[%clk 0:02:09.3]} 26. Kh2 {[%clk 0:01:30.4]} 26... e5 {[%clk
0:02:01.8]} 27. f5 {[%clk 0:01:18.5]} 27... Qe2 {[%clk 0:01:59.3]} 28. fxg6
{[%clk 0:01:10.6]} 28... fxg6 {[%clk 0:01:54.5]} 29. Ra5 {[%clk 0:01:10.8]}
29... Rf8 {[%clk 0:01:05.2]} 30. Rxf8+ {[%clk 0:00:47.4]} 30... Kxf8 {[%clk
0:01:06.1]} 31. Qa4 {[%clk 0:00:19.6]} 31... Qg4 {[%clk 0:01:06.1]} 32. Rb5
{[%clk 0:00:13.1]} 32... Rxb5 {[%clk 0:00:40.7]} 33. Qxb5 {[%clk 0:00:11.1]}
33... Be1 {[%clk 0:00:41.2]} 34. Qb8+ {[%clk 0:00:10.9]} 34... Kg7 {[%clk
0:00:41.2]} 35. Qxa7+ {[%clk 0:00:11.1]} 35... Kh6 {[%clk 0:00:41.6]} 36. Qe7
{[%clk 0:00:10.9]} 36... Bxg3+ {[%clk 0:00:28.4]} 37. Kg1 {[%clk 0:00:11.1]}
37... Qd1+ {[%clk 0:00:22.9]} 38. Bf1 {[%clk 0:00:11.4]} 38... Qd4+ {[%clk
0:00:21.8]} 39. Kh1 {[%clk 0:00:11.8]} 39... Qxe4+ {[%clk 0:00:22.1]} 40. Kg1
{[%clk 0:00:11.7]} 40... Qe3+ {[%clk 0:00:19.2]} 41. Kg2 {[%clk 0:00:12.1]}
41... Qf2+ {[%clk 0:00:19.1]} 42. Kh3 {[%clk 0:00:12.5]} 42... Qh2# {[%clk
0:00:19.6]} 0-1

[Event "Late-Titled-Tuesday-Blitz-February-06-2024"]
[Site "Chess.com"]
[Date "2024.02.06"]
[Round "8"]
[White "AlexeiShirov"]
[Black "h4parah5"]
[Result "1/2-1/2"]
[WhiteElo "2809"]
[BlackElo "2964"]
[TimeControl "180+1"]
[EndTime "15:29:01 PST"]
[Termination "Game drawn - insufficient material"]

1. e4 {[%clk 0:03:00.9]} 1... c5 {[%clk 0:02:59]} 2. Nf3 {[%clk 0:03:00.6]} 2...
e6 {[%clk 0:02:58.6]} 3. d4 {[%clk 0:03:00.3]} 3... cxd4 {[%clk 0:02:59.5]} 4.
Nxd4 {[%clk 0:02:59.1]} 4... Nc6 {[%clk 0:03:00.4]} 5. Nc3 {[%clk 0:02:58.1]}
5... Qc7 {[%clk 0:03:00.4]} 6. Be3 {[%clk 0:02:58.1]} 6... a6 {[%clk 0:02:59.8]}
7. Qf3 {[%clk 0:02:57.7]} 7... b5 {[%clk 0:02:59.4]} 8. O-O-O {[%clk 0:02:57]}
8... Bb7 {[%clk 0:02:57.9]} 9. Qg3 {[%clk 0:02:47.1]} 9... Qxg3 {[%clk
0:02:49.5]} 10. hxg3 {[%clk 0:02:46.1]} 10... Nxd4 {[%clk 0:02:49.8]} 11. Bxd4
{[%clk 0:02:38.7]} 11... b4 {[%clk 0:02:47.7]} 12. Na4 {[%clk 0:02:38.1]} 12...
Bxe4 {[%clk 0:02:43.7]} 13. Nb6 {[%clk 0:02:37.7]} 13... Rb8 {[%clk 0:02:39.1]}
14. Nxd7 {[%clk 0:02:27.6]} 14... Rc8 {[%clk 0:02:37.6]} 15. Bd3 {[%clk
0:02:21.3]} 15... Bxg2 {[%clk 0:02:23.2]} 16. Nxf8 {[%clk 0:01:59]} 16... Kxf8
{[%clk 0:02:24.1]} 17. Bxa6 {[%clk 0:01:53.2]} 17... Rc6 {[%clk 0:02:03.7]} 18.
Rhg1 {[%clk 0:01:47.9]} 18... Rxa6 {[%clk 0:01:58.2]} 19. Rxg2 {[%clk
0:01:45.9]} 19... Rxa2 {[%clk 0:01:57.9]} 20. Bc5+ {[%clk 0:01:41.7]} 20... Ke8
{[%clk 0:01:55.1]} 21. Kb1 {[%clk 0:01:32.5]} 21... b3 {[%clk 0:01:46.3]} 22.
cxb3 {[%clk 0:01:31]} 22... Ra8 {[%clk 0:01:45.5]} 23. b4 {[%clk 0:01:27.6]}
23... Nf6 {[%clk 0:01:44.9]} 24. f4 {[%clk 0:01:18.5]} 24... Nd5 {[%clk
0:01:39.7]} 25. Re2 {[%clk 0:01:16.7]} 25... Kd7 {[%clk 0:01:37.5]} 26. f5
{[%clk 0:01:14.4]} 26... Rab8 {[%clk 0:01:22.8]} 27. fxe6+ {[%clk 0:01:11.7]}
27... fxe6 {[%clk 0:01:23.7]} 28. Rf1 {[%clk 0:01:10.2]} 28... Nf6 {[%clk
0:01:18.9]} 29. Rd2+ {[%clk 0:01:06.7]} 29... Ke8 {[%clk 0:01:15.5]} 30. Bd6
{[%clk 0:00:52.6]} 30... Ne4 {[%clk 0:01:03]} 31. Rd4 {[%clk 0:00:51.4]} 31...
Nxd6 {[%clk 0:01:02.9]} 32. Rxd6 {[%clk 0:00:50.1]} 32... Ke7 {[%clk 0:01:02.5]}
33. Ra6 {[%clk 0:00:49.4]} 33... Rhd8 {[%clk 0:00:46.5]} 34. Ra7+ {[%clk
0:00:48.2]} 34... Rd7 {[%clk 0:00:46.3]} 35. Rxd7+ {[%clk 0:00:47.4]} 35... Kxd7
{[%clk 0:00:43.9]} 36. Rf7+ {[%clk 0:00:47.3]} 36... Kd6 {[%clk 0:00:44.1]} 37.
Rxg7 {[%clk 0:00:46.9]} 37... h5 {[%clk 0:00:42.9]} 38. Rh7 {[%clk 0:00:45.5]}
38... Rb5 {[%clk 0:00:41.7]} 39. Kc2 {[%clk 0:00:43.4]} 39... Rg5 {[%clk
0:00:41.2]} 40. Kd2 {[%clk 0:00:36.6]} 40... Rxg3 {[%clk 0:00:38.4]} 41. Rxh5
{[%clk 0:00:35.7]} 41... Rb3 {[%clk 0:00:38.3]} 42. Kc2 {[%clk 0:00:35.1]} 42...
Rxb4 {[%clk 0:00:38.2]} 43. Kc3 {[%clk 0:00:34.9]} 43... Rf4 {[%clk 0:00:35.8]}
44. b4 {[%clk 0:00:34.7]} 44... Kc6 {[%clk 0:00:36]} 45. Re5 {[%clk 0:00:33.4]}
45... Kb7 {[%clk 0:00:35.5]} 46. Rxe6 {[%clk 0:00:32.1]} 46... Rg4 {[%clk
0:00:35.4]} 47. Kb3 {[%clk 0:00:32.1]} 47... Rf4 {[%clk 0:00:35.5]} 48. Ka4
{[%clk 0:00:32.5]} 48... Rf5 {[%clk 0:00:36.1]} 49. b5 {[%clk 0:00:31.4]} 49...
Rg5 {[%clk 0:00:35.7]} 50. Ka5 {[%clk 0:00:31.4]} 50... Rf5 {[%clk 0:00:34.9]}
51. Re7+ {[%clk 0:00:31.3]} 51... Kb8 {[%clk 0:00:34.4]} 52. Ka6 {[%clk
0:00:31.3]} 52... Rf8 {[%clk 0:00:34.3]} 53. b6 {[%clk 0:00:30.4]} 53... Rh8
{[%clk 0:00:32.1]} 54. Rc7 {[%clk 0:00:29.9]} 54... Rg8 {[%clk 0:00:31.5]} 55.
Rc6 {[%clk 0:00:29.5]} 55... Rh8 {[%clk 0:00:31.1]} 56. b7 {[%clk 0:00:29.4]}
56... Rg8 {[%clk 0:00:30.3]} 57. Rc8+ {[%clk 0:00:29.3]} 57... Rxc8 {[%clk
0:00:29.6]} 58. bxc8=Q+ {[%clk 0:00:29.3]} 58... Kxc8 {[%clk 0:00:30.5]} 1/2-1/2

[Event "Late-Titled-Tuesday-Blitz-February-06-2024"]
[Site "Chess.com"]
[Date "2024.02.06"]
[Round "8"]
[White "Mops_2004"]
[Black "KuzubovYuriy"]
[Result "0-1"]
[WhiteElo "2736"]
[BlackElo "2902"]
[TimeControl "180+1"]
[EndTime "15:29:06 PST"]
[Termination "KuzubovYuriy won by resignation"]

1. f4 {[%clk 0:03:00.9]} 1... g6 {[%clk 0:02:57.9]} 2. Nf3 {[%clk 0:03:00.7]}
2... Bg7 {[%clk 0:02:57.6]} 3. g3 {[%clk 0:03:01.1]} 3... d5 {[%clk 0:02:55.8]}
4. Bg2 {[%clk 0:03:00.5]} 4... b5 {[%clk 0:02:54.3]} 5. Nc3 {[%clk 0:02:56.7]}
5... a6 {[%clk 0:02:44.5]} 6. e4 {[%clk 0:02:43.7]} 6... d4 {[%clk 0:02:30.9]}
7. Ne2 {[%clk 0:02:40.7]} 7... d3 {[%clk 0:02:31]} 8. cxd3 {[%clk 0:02:32]} 8...
Qxd3 {[%clk 0:02:31.9]} 9. Nc3 {[%clk 0:02:09.8]} 9... Bb7 {[%clk 0:02:19]} 10.
Bf1 {[%clk 0:01:50.4]} 10... Qd7 {[%clk 0:02:10]} 11. Qb3 {[%clk 0:01:31.2]}
11... Nc6 {[%clk 0:01:57]} 12. Be2 {[%clk 0:01:11.8]} 12... Nd4 {[%clk
0:01:38.7]} 13. Nxd4 {[%clk 0:01:11.6]} 13... Bxd4 {[%clk 0:01:39.6]} 14. d3
{[%clk 0:01:11.2]} 14... Nf6 {[%clk 0:01:35]} 15. Bf3 {[%clk 0:00:59.1]} 15...
O-O {[%clk 0:01:20.2]} 16. Bd2 {[%clk 0:00:34.5]} 16... c5 {[%clk 0:01:14]} 17.
Ne2 {[%clk 0:00:27.6]} 17... c4 {[%clk 0:01:13.6]} 18. dxc4 {[%clk 0:00:28]}
18... Nxe4 {[%clk 0:01:09.5]} 19. O-O-O {[%clk 0:00:19.7]} 19... bxc4 {[%clk
0:00:40.8]} 20. Qc2 {[%clk 0:00:19.5]} 20... Nxd2 {[%clk 0:00:30.4]} 21. Bxb7
{[%clk 0:00:18]} 21... Qxb7 {[%clk 0:00:20.7]} 22. Nxd4 {[%clk 0:00:16.9]} 22...
Ne4 {[%clk 0:00:19.5]} 23. Rhe1 {[%clk 0:00:16.8]} 23... Nd6 {[%clk 0:00:15]}
24. Ne2 {[%clk 0:00:13.7]} 24... Nb5 {[%clk 0:00:12.9]} 25. Nc3 {[%clk
0:00:13.4]} 25... Rad8 {[%clk 0:00:11.4]} 26. Rxd8 {[%clk 0:00:05.8]} 26... Rxd8
{[%clk 0:00:11.2]} 27. Rd1 {[%clk 0:00:06.6]} 27... Rxd1+ {[%clk 0:00:10.1]} 28.
Qxd1 {[%clk 0:00:07.5]} 28... Nxc3 {[%clk 0:00:08.8]} 29. Qd8+ {[%clk
0:00:07.8]} 29... Kg7 {[%clk 0:00:09.2]} 30. Qd4+ {[%clk 0:00:08.4]} 30... f6
{[%clk 0:00:09.4]} 31. bxc3 {[%clk 0:00:07.4]} 31... Qh1+ {[%clk 0:00:09.1]} 32.
Kb2 {[%clk 0:00:07.6]} 32... Qxh2+ {[%clk 0:00:09.7]} 33. Ka3 {[%clk 0:00:08.1]}
33... Qxg3 {[%clk 0:00:09.7]} 34. Qxc4 {[%clk 0:00:07.5]} 34... Qe3 {[%clk
0:00:09.8]} 35. Kb4 {[%clk 0:00:06.3]} 35... h5 {[%clk 0:00:09.8]} 36. Qxa6
{[%clk 0:00:04.9]} 36... h4 {[%clk 0:00:09.8]} 37. Qb7 {[%clk 0:00:05.1]} 37...
h3 {[%clk 0:00:09.5]} 38. a4 {[%clk 0:00:05.5]} 38... h2 {[%clk 0:00:09.4]} 39.
a5 {[%clk 0:00:05.8]} 39... Qe1 {[%clk 0:00:09.5]} 0-1

[Event "Late-Titled-Tuesday-Blitz-February-06-2024"]
[Site "Chess.com"]
[Date "2024.02.06"]
[Round "8"]
[White "hakanazeri2"]
[Black "subham777"]
[Result "1-0"]
[WhiteElo "2639"]
[BlackElo "2516"]
[TimeControl "180+1"]
[EndTime "15:29:06 PST"]
[Termination "hakanazeri2 won by resignation"]

1. Nf3 {[%clk 0:02:56.9]} 1... d5 {[%clk 0:02:58.9]} 2. d4 {[%clk 0:02:56]} 2...
Nf6 {[%clk 0:02:59]} 3. c4 {[%clk 0:02:55.1]} 3... e6 {[%clk 0:02:59.3]} 4. g3
{[%clk 0:02:54]} 4... Be7 {[%clk 0:02:59.8]} 5. Bg2 {[%clk 0:02:53.8]} 5... O-O
{[%clk 0:02:59.1]} 6. O-O {[%clk 0:02:54.4]} 6... dxc4 {[%clk 0:02:57.7]} 7. Qc2
{[%clk 0:02:54.2]} 7... a6 {[%clk 0:02:56.9]} 8. a4 {[%clk 0:02:53.5]} 8... Bd7
{[%clk 0:02:57]} 9. Rd1 {[%clk 0:02:52.4]} 9... Bc6 {[%clk 0:02:55.7]} 10. Bg5
{[%clk 0:02:52.2]} 10... Be4 {[%clk 0:02:51.2]} 11. Qxc4 {[%clk 0:02:48.1]}
11... Bd5 {[%clk 0:02:50.5]} 12. Qc2 {[%clk 0:02:41.9]} 12... Be4 {[%clk
0:02:49.9]} 13. Qc1 {[%clk 0:02:32.6]} 13... Nd5 {[%clk 0:02:47.5]} 14. Bxe7
{[%clk 0:02:26.3]} 14... Qxe7 {[%clk 0:02:45.8]} 15. Nbd2 {[%clk 0:02:22.1]}
15... Bg6 {[%clk 0:02:43.6]} 16. Ne5 {[%clk 0:02:16.1]} 16... Rd8 {[%clk
0:01:47.7]} 17. Ndc4 {[%clk 0:02:08.9]} 17... Ra7 {[%clk 0:01:22]} 18. e4 {[%clk
0:01:52.5]} 18... Nf6 {[%clk 0:01:15]} 19. Qe3 {[%clk 0:01:48.8]} 19... Ra8
{[%clk 0:01:04.3]} 20. Na5 {[%clk 0:01:38.9]} 20... c6 {[%clk 0:00:52.8]} 21.
Nxg6 {[%clk 0:01:20.1]} 21... hxg6 {[%clk 0:00:51.4]} 22. Qb3 {[%clk 0:01:20.7]}
22... b5 {[%clk 0:00:34.9]} 23. Qc3 {[%clk 0:01:10.2]} 23... Qc7 {[%clk
0:00:27.4]} 24. Rac1 {[%clk 0:00:57.2]} 24... bxa4 {[%clk 0:00:25.8]} 25. Qb4
{[%clk 0:00:51.4]} 25... Nfd7 {[%clk 0:00:13]} 26. Qxa4 {[%clk 0:00:48.3]} 26...
Nb6 {[%clk 0:00:11.1]} 27. Qb4 {[%clk 0:00:42.5]} 27... Ra7 {[%clk 0:00:10.4]}
28. d5 {[%clk 0:00:38.7]} 28... exd5 {[%clk 0:00:10.4]} 29. exd5 {[%clk
0:00:38.9]} 29... N6d7 {[%clk 0:00:02]} 30. dxc6 {[%clk 0:00:36]} 30... Nf6
{[%clk 0:00:02.1]} 31. Rxd8+ {[%clk 0:00:32.2]} 31... Qxd8 {[%clk 0:00:03]} 32.
Nb7 {[%clk 0:00:32.8]} 32... Qc8 {[%clk 0:00:02.7]} 33. Qb6 {[%clk 0:00:31]}
33... Ra8 {[%clk 0:00:01.9]} 34. Nd6 {[%clk 0:00:29.7]} 34... Qe6 {[%clk
0:00:02.6]} 35. c7 {[%clk 0:00:29.6]} 35... Nbd7 {[%clk 0:00:02.8]} 36. Qd4
{[%clk 0:00:22.5]} 36... Re8 {[%clk 0:00:02.2]} 37. Nxe8 {[%clk 0:00:22.2]}
37... Nb6 {[%clk 0:00:02.3]} 38. Nxf6+ {[%clk 0:00:21.6]} 38... gxf6 {[%clk
0:00:03.2]} 39. Rc6 {[%clk 0:00:18.6]} 39... Qe1+ {[%clk 0:00:02.7]} 40. Bf1
{[%clk 0:00:19.2]} 40... Nc8 {[%clk 0:00:02.8]} 41. Qd8+ {[%clk 0:00:18.8]}
41... Kg7 {[%clk 0:00:03.7]} 42. Qxc8 {[%clk 0:00:19.4]} 42... Qe4 {[%clk
0:00:04]} 43. Qd7 {[%clk 0:00:19.5]} 1-0

[Event "Late-Titled-Tuesday-Blitz-February-06-2024"]
[Site "Chess.com"]
[Date "2024.02.06"]
[Round "8"]
[White "GHANDEEVAM2003"]
[Black "Kosak12"]
[Result "1/2-1/2"]
[WhiteElo "3037"]
[BlackElo "2840"]
[TimeControl "180+1"]
[EndTime "15:29:10 PST"]
[Termination "Game drawn - insufficient material"]

1. Nf3 {[%clk 0:03:00.9]} 1... Nf6 {[%clk 0:02:59.5]} 2. c4 {[%clk 0:03:01]}
2... e6 {[%clk 0:02:59.5]} 3. b3 {[%clk 0:03:00.9]} 3... d5 {[%clk 0:02:59.6]}
4. Bb2 {[%clk 0:03:01.8]} 4... Bd6 {[%clk 0:02:57.9]} 5. e3 {[%clk 0:02:59]}
5... O-O {[%clk 0:02:58]} 6. g4 {[%clk 0:02:58.9]} 6... c5 {[%clk 0:02:38.7]} 7.
g5 {[%clk 0:02:52.4]} 7... Nfd7 {[%clk 0:02:35.6]} 8. Nc3 {[%clk 0:02:49.5]}
8... Nb6 {[%clk 0:02:20.3]} 9. Qc2 {[%clk 0:02:45.2]} 9... Nc6 {[%clk
0:02:20.2]} 10. a3 {[%clk 0:02:45.5]} 10... d4 {[%clk 0:02:20.5]} 11. Ne4 {[%clk
0:02:45.7]} 11... a5 {[%clk 0:02:05.1]} 12. Bd3 {[%clk 0:02:43.8]} 12... a4
{[%clk 0:02:00.4]} 13. exd4 {[%clk 0:02:39.8]} 13... axb3 {[%clk 0:01:59.6]} 14.
Qxb3 {[%clk 0:02:40.7]} 14... Na4 {[%clk 0:01:33.8]} 15. dxc5 {[%clk 0:02:40.8]}
15... Nxb2 {[%clk 0:01:29.1]} 16. cxd6 {[%clk 0:02:31.5]} 16... Nxd3+ {[%clk
0:01:20.9]} 17. Qxd3 {[%clk 0:02:32.4]} 17... e5 {[%clk 0:01:20.3]} 18. Qb1
{[%clk 0:02:09.4]} 18... Kh8 {[%clk 0:01:01.7]} 19. d3 {[%clk 0:02:06]} 19...
Bf5 {[%clk 0:01:01]} 20. Nfd2 {[%clk 0:02:06.6]} 20... Nd4 {[%clk 0:01:00.8]}
21. h4 {[%clk 0:02:03]} 21... Bxe4 {[%clk 0:00:54.7]} 22. Nxe4 {[%clk
0:02:03.1]} 22... f5 {[%clk 0:00:54.5]} 23. gxf6 {[%clk 0:02:04]} 23... gxf6
{[%clk 0:00:54.9]} 24. Qb2 {[%clk 0:01:48.4]} 24... f5 {[%clk 0:00:53.2]} 25.
Nc3 {[%clk 0:01:49.1]} 25... Qxd6 {[%clk 0:00:53.2]} 26. Nb5 {[%clk 0:01:49.8]}
26... Qc6 {[%clk 0:00:52.5]} 27. O-O-O {[%clk 0:01:45.2]} 27... Nxb5 {[%clk
0:00:48]} 28. Qxe5+ {[%clk 0:01:45.1]} 28... Rf6 {[%clk 0:00:42.2]} 29. Qxb5
{[%clk 0:01:44.9]} 29... Qxb5 {[%clk 0:00:42.3]} 30. cxb5 {[%clk 0:01:45.8]}
30... Rxa3 {[%clk 0:00:42.6]} 31. Rhe1 {[%clk 0:01:40.8]} 31... Rc3+ {[%clk
0:00:30.7]} 32. Kd2 {[%clk 0:01:38.4]} 32... Rc5 {[%clk 0:00:30.5]} 33. Rb1
{[%clk 0:01:14.4]} 33... Rb6 {[%clk 0:00:30.4]} 34. Re8+ {[%clk 0:01:06.6]}
34... Kg7 {[%clk 0:00:30.2]} 35. Re7+ {[%clk 0:01:07.5]} 35... Kh6 {[%clk
0:00:27.5]} 36. Rg1 {[%clk 0:01:06.3]} 36... Rcxb5 {[%clk 0:00:20.4]} 37. Rgg7
{[%clk 0:01:06.7]} 37... Rb2+ {[%clk 0:00:20.6]} 38. Kc3 {[%clk 0:01:06]} 38...
Rxf2 {[%clk 0:00:15]} 39. Rxh7+ {[%clk 0:00:57.2]} 39... Kg6 {[%clk 0:00:15.4]}
40. h5+ {[%clk 0:00:51.7]} 40... Kg5 {[%clk 0:00:15.2]} 41. Reg7+ {[%clk
0:00:35.7]} 41... Kf4 {[%clk 0:00:15.5]} 42. Rg6 {[%clk 0:00:36.2]} 42... Rxg6
{[%clk 0:00:12.4]} 43. hxg6 {[%clk 0:00:37.1]} 43... Rg2 {[%clk 0:00:12.8]} 44.
g7 {[%clk 0:00:37.8]} 44... Ke5 {[%clk 0:00:13]} 45. d4+ {[%clk 0:00:34.7]}
45... Kf6 {[%clk 0:00:13]} 46. g8=Q {[%clk 0:00:35]} 46... Rxg8 {[%clk
0:00:12.8]} 47. Rxb7 {[%clk 0:00:35.9]} 47... f4 {[%clk 0:00:13.1]} 48. Kd3
{[%clk 0:00:36.1]} 48... Re8 {[%clk 0:00:13.2]} 49. Rb5 {[%clk 0:00:35.3]} 49...
f3 {[%clk 0:00:12.2]} 50. Kd2 {[%clk 0:00:34.1]} 50... f2 {[%clk 0:00:09.6]} 51.
Rb1 {[%clk 0:00:33.6]} 51... Re4 {[%clk 0:00:09.7]} 52. Rf1 {[%clk 0:00:34.1]}
52... Rxd4+ {[%clk 0:00:09.9]} 53. Ke3 {[%clk 0:00:35]} 53... Rd5 {[%clk
0:00:10.4]} 54. Rxf2+ {[%clk 0:00:35.9]} 54... Rf5 {[%clk 0:00:11]} 55. Rxf5+
{[%clk 0:00:36.5]} 55... Kxf5 {[%clk 0:00:11.6]} 1/2-1/2

[Event "Late-Titled-Tuesday-Blitz-February-06-2024"]
[Site "Chess.com"]
[Date "2024.02.06"]
[Round "8"]
[White "trriinu"]
[Black "DinaBelenkaya"]
[Result "0-1"]
[WhiteElo "2236"]
[BlackElo "2431"]
[TimeControl "180+1"]
[EndTime "15:29:10 PST"]
[Termination "DinaBelenkaya won on time"]

1. e4 {[%clk 0:03:00]} 1... c6 {[%clk 0:02:58.1]} 2. Nc3 {[%clk 0:02:59.9]} 2...
d5 {[%clk 0:02:58.4]} 3. Nf3 {[%clk 0:03:00.1]} 3... dxe4 {[%clk 0:02:58]} 4.
Nxe4 {[%clk 0:03:01]} 4... Nf6 {[%clk 0:02:58.3]} 5. Qe2 {[%clk 0:03:01.4]} 5...
Nxe4 {[%clk 0:02:57]} 6. Qxe4 {[%clk 0:03:02.3]} 6... Qd5 {[%clk 0:02:57.6]} 7.
Qxd5 {[%clk 0:02:51.2]} 7... cxd5 {[%clk 0:02:58.5]} 8. d4 {[%clk 0:02:14.4]}
8... Nc6 {[%clk 0:02:56.5]} 9. c3 {[%clk 0:02:13.7]} 9... a6 {[%clk 0:02:55.9]}
10. Bd3 {[%clk 0:02:12.7]} 10... f6 {[%clk 0:02:53]} 11. O-O {[%clk 0:02:12.1]}
11... Kf7 {[%clk 0:02:52.3]} 12. Re1 {[%clk 0:02:08.9]} 12... Bg4 {[%clk
0:02:51.5]} 13. Bf4 {[%clk 0:01:34]} 13... Bxf3 {[%clk 0:02:51]} 14. gxf3 {[%clk
0:01:34.3]} 14... g5 {[%clk 0:02:48.4]} 15. Bg3 {[%clk 0:01:34.5]} 15... h5
{[%clk 0:02:48]} 16. h4 {[%clk 0:01:33.6]} 16... Bh6 {[%clk 0:02:47.6]} 17. Bf5
{[%clk 0:01:27.1]} 17... Nd8 {[%clk 0:02:16]} 18. Kh2 {[%clk 0:01:10.9]} 18...
gxh4 {[%clk 0:02:15.8]} 19. Bxh4 {[%clk 0:01:10.4]} 19... e6 {[%clk 0:02:06.9]}
20. Bc2 {[%clk 0:01:07.3]} 20... Nc6 {[%clk 0:02:01.2]} 21. Bg3 {[%clk
0:00:42.5]} 21... h4 {[%clk 0:01:55.3]} 22. Bd6 {[%clk 0:00:38.9]} 22... Rad8
{[%clk 0:01:53.4]} 23. Bc5 {[%clk 0:00:38.5]} 23... Bf4+ {[%clk 0:01:50.8]} 24.
Kh3 {[%clk 0:00:38.5]} 24... f5 {[%clk 0:01:24.8]} 25. Rg1 {[%clk 0:00:32.1]}
25... Rhg8 {[%clk 0:01:24.9]} 26. Rae1 {[%clk 0:00:25.5]} 26... Nb8 {[%clk
0:01:17.6]} 27. Bb6 {[%clk 0:00:23.4]} 27... Rde8 {[%clk 0:01:14.8]} 28. b3
{[%clk 0:00:08.4]} 28... Nd7 {[%clk 0:01:13.8]} 29. Ba5 {[%clk 0:00:06.7]} 29...
b6 {[%clk 0:00:49.3]} 30. Bb4 {[%clk 0:00:06.8]} 30... a5 {[%clk 0:00:48.5]} 31.
Ba3 {[%clk 0:00:07.1]} 31... b5 {[%clk 0:00:43.3]} 32. Bc1 {[%clk 0:00:05.7]}
32... Bxc1 {[%clk 0:00:38.7]} 33. Rxc1 {[%clk 0:00:06.6]} 33... Rxg1 {[%clk
0:00:35.3]} 34. Rxg1 {[%clk 0:00:07.5]} 34... Rc8 {[%clk 0:00:35.6]} 35. Bd3
{[%clk 0:00:07.6]} 35... Rxc3 {[%clk 0:00:34]} 36. Bxb5 {[%clk 0:00:07.8]} 36...
Nf8 {[%clk 0:00:29.5]} 37. Kxh4 {[%clk 0:00:04.5]} 37... Rxf3 {[%clk 0:00:28.3]}
38. Rg2 {[%clk 0:00:04.2]} 38... Kf6 {[%clk 0:00:26.1]} 39. Be8 {[%clk
0:00:03.4]} 39... Rf4+ {[%clk 0:00:24]} 40. Kh3 {[%clk 0:00:03.3]} 40... Rxd4
{[%clk 0:00:23.7]} 41. Bh5 {[%clk 0:00:02.8]} 41... Rd3+ {[%clk 0:00:22.9]} 42.
Kh4 {[%clk 0:00:01.6]} 42... e5 {[%clk 0:00:20]} 0-1